bitfinex/quotes_SOLUSD_20251103
["timestamp","ask_amount","ask_price","bid_price","bid_amount"]
[1762155392684,9.78882769,177.05,177.02,5.6490792]
[1762155393180,9.78882769,177.05,177.04,5.62826303]
[1762155393385,9.78882769,177.07,177.04,5.62826303]
[1762155393688,9.88882769,177.08,177.06,5.62826303]
[1762155394206,0.1,177.08,177.07,5.62826303]
[1762155394595,0.1,177.08,177.07,6.31826303]
[1762155394799,0.1,177.08,177.07,5.62826303]
[1762155395189,0.1,177.08,177.07,11.27574707]
[1762155396190,0.1,177.08,177.07,11.96574707]
[1762155397408,0.1,177.08,177.07,11.27574707]
[1762155398310,0.1,177.08,177.07,11.96574707]
[1762155398615,0.1,177.08,177.07,32.55774707]
[1762155401002,0.1,177.12,177.07,46.67645718]
[1762155401200,0.1,177.12,177.11,5.62826303]
[1762155401403,0.1,177.12,177.11,6.31826303]
[1762155403098,0.1,177.12,177.11,11.2744716]
[1762155403622,0.1,177.12,177.11,11.9644716]
[1762155403821,0.1,177.12,177.11,11.2744716]
[1762155404208,0.1,177.12,177.11,11.9644716]
[1762155404696,0.1,177.12,177.11,5.64620857]
[1762155404899,0.1,177.12,177.11,11.2744716]
[1762155406518,0.1,177.12,177.11,11.9644716]
[1762155407426,1e-08,177.12,177.11,11.9644716]
[1762155410127,1e-08,177.12,177.11,32.5564716]
[1762155416338,1e-08,177.12,177.11,29.13444755]
[1762155416544,1e-08,177.12,177.11,10.74868653]
[1762155416944,1e-08,177.12,177.11,17.36740347]
[1762155417119,0.1,177.17,177.16,2.20623898]
[1762155418231,0.82,177.17,177.12,21.272]
[1762155418444,0.82,177.17,177.16,11.26122778]
[1762155418857,0.82,177.17,177.16,5.61661275]
[1762155420135,0.82,177.17,177.15,5.64491103]
[1762155420334,0.82,177.17,177.16,5.61661275]
[1762155420659,0.1,177.17,177.16,11.26122778]
[1762155421328,0.82,177.17,177.16,11.26122778]
[1762155421735,0.1,177.17,177.16,11.26122778]
[1762155423237,0.82,177.17,177.16,11.26122778]
[1762155423833,0.82,177.17,177.14,5.61661275]
[1762155424042,0.82,177.17,177.15,5.61661275]
[1762155425255,0.82,177.17,177.14,5.64525234]
[1762155425442,0.82,177.17,177.15,5.61661275]
[1762155425639,0.82,177.17,177.14,5.64525234]
[1762155425841,0.82,177.17,177.14,5.61661275]
[1762155426043,0.82,177.17,177.13,5.61661275]
[1762155426444,0.82,177.17,177.15,5.61661275]
[1762155426958,0.82,177.17,177.14,5.61661275]
[1762155427156,0.82,177.17,177.13,25.37587693]
[1762155427365,0.82,177.17,177.13,11.26194931]
[1762155427658,0.82,177.17,177.13,5.64533656]
[1762155427839,0.82,177.17,177.13,11.26194931]
[1762155428042,9.78882769,177.16,177.13,11.26194931]
[1762155428542,0.72,177.15,177.12,5.61661275]
[1762155428749,0.72,177.15,177.1,5.61661275]
[1762155428750,9.78882769,177.14,177.1,5.61661275]
[1762155428952,9.78882769,177.14,177.09,5.61661275]
[1762155429149,0.72,177.13,177.09,5.61661275]
[1762155429947,0.72,177.13,177.1,5.64652738]
[1762155430166,0.72,177.13,177.11,5.61661275]
[1762155430635,0.72,177.13,177.1,11.26314013]
[1762155431843,0.68173774,177.13,177.11,5.61661275]
[1762155432354,0.68173774,177.13,177.11,11.26261567]
[1762155432552,0.68173774,177.13,177.11,5.61661275]
[1762155432939,0.68173774,177.13,177.1,5.61661275]
[1762155433739,0.68173774,177.13,177.09,5.64684623]
[1762155433936,0.68173774,177.13,177.08,20.592]
[1762155433937,0.68173774,177.13,177.1,11.26298954]
[1762155434878,15.40544044,177.12,177.05,5.64812199]
[1762155435047,5.61661275,177.1,177.05,5.64812199]
[1762155435242,5.61661275,177.09,177.04,5.64842344]
[1762155435771,0.72,177.08,177.04,11.26503619]
[1762155435942,9.78882769,177.07,177.03,5.61661275]
[1762155436154,15.40544044,177.07,176.99,0.68]
[1762155436355,15.40544044,177.07,176.98,14.12542604]
[1762155436356,6.33661275,177.06,177.01,5.61661275]
[1762155436583,6.33661275,177.06,177.03,5.61661275]
[1762155436584,0.72,177.06,177.03,5.61661275]
[1762155437395,0.72,177.06,177.02,5.61661275]
[1762155437973,0.72,177.06,177.03,5.64876009]
[1762155438158,0.72,177.06,177.02,11.26569031]
[1762155438365,0.72,177.06,177.02,5.64907756]
[1762155438578,4.51169466,177.06,177.02,5.64907756]
[1762155438989,0.72,177.05,177.02,5.64907756]
[1762155439982,0.72,177.05,177.01,7.85912153]
[1762155440365,0.72,177.05,177.02,3.45256166]
[1762155441084,3.79134482,177.07,177.02,3.45256166]
[1762155441085,0.72,177.08,177.04,24.04456166]
[1762155441288,0.72,177.07,177.04,24.04456166]
[1762155441589,0.72,177.07,177.05,3.45256166]
[1762155441889,0.72,177.07,177.05,9.10067573]
[1762155442263,9.78882769,177.06,177.03,5.64844816]
[1762155442677,0.72,177.05,177.03,5.64844816]
[1762155444390,0.72,177.05,177.01,19.77289417]
[1762155444587,0.72,177.05,177.02,3.45256166]
[1762155445387,26.23802136,177.12,177.03,3.45256166]
[1762155445585,0.72,177.08,177.05,3.45256166]
[1762155445783,9.78882769,177.09,177.07,3.45256166]
[1762155446089,9.78882769,177.07,177.04,3.45256166]
[1762155446293,10.50882769,177.07,177.04,3.45256166]
[1762155446594,10.50882769,177.07,177.05,5.64812199]
[1762155446894,0.7,177.06,177.04,5.64839665]
[1762155447100,0.7,177.06,177.04,9.10095831]
[1762155447896,0.7,177.09,177.05,3.45256166]
[1762155448081,0.7,177.09,177.07,3.45256166]
[1762155448597,10.48882769,177.09,177.08,5.64716512]
[1762155449601,10.48882769,177.09,177.05,9.10068365]
[1762155449798,10.48882769,177.09,177.05,5.64812199]
[1762155449799,0.7,177.08,177.05,5.64812199]
[1762155451202,0.7,177.08,177.06,3.45256166]
[1762155451406,0.7,177.08,177.05,9.10068365]
[1762155453198,0.7,177.08,177.05,3.45256166]
[1762155453505,0.7,177.08,177.04,9.10100269]
[1762155454132,9.78882769,177.07,177.03,5.64873484]
[1762155454297,9.78882769,177.05,177.03,5.64873484]
[1762155454712,0.7,177.04,177.0,20.592]
[1762155455018,9.78882769,177.03,176.99,9.10257529]
[1762155455534,0.7,177.03,177.0,3.45256166]
[1762155455923,0.7,177.03,176.97,21.262]
[1762155455924,13.94138935,177.03,176.98,5.65030362]
[1762155456119,13.94138935,177.03,176.94,0.67]
[1762155456120,13.24138935,177.02,176.96,3.45256166]
[1762155456297,13.94138935,177.02,176.97,3.45256166]
[1762155456497,9.78882769,177.0,176.97,3.45256166]
[1762155456710,9.78882769,177.0,176.97,9.10302326]
[1762155456913,0.7,176.99,176.97,9.10302326]
[1762155457116,0.7,176.99,176.97,5.6504616]
[1762155457421,0.7,176.99,176.97,9.10302326]
[1762155457810,5.6487521,177.04,176.97,9.10302326]
[1762155457811,0.7,177.02,176.98,3.45256166]
[1762155458218,0.7,177.02,176.99,3.45256166]
[1762155458925,9.78882769,177.01,177.0,5.64971751]
[1762155459107,9.78882769,177.01,176.99,9.10254928]
[1762155459422,0.7,177.01,176.99,9.10254928]
[1762155461513,9.78882769,177.04,176.99,9.10254928]
[1762155461714,0.7,177.01,176.99,9.10254928]
[1762155462402,9.78882769,177.02,177.0,3.45256166]
[1762155462815,9.78882769,177.03,177.01,5.64939833]
[1762155463019,10.48882769,177.03,177.01,5.64939833]
[1762155463619,0.7,177.05,177.01,9.10195999]
[1762155464826,9.78882769,177.07,177.05,5.64812199]
[1762155465126,0.7,177.07,177.05,9.10068365]
[1762155465622,0.7,177.07,177.03,9.10116304]
[1762155465821,0.7,177.07,177.03,23.22306328]
[1762155466038,0.7,177.07,177.04,3.45256166]
[1762155467526,0.7,177.07,177.03,3.45256166]
[1762155468627,0.7,177.07,177.04,3.45256166]
[1762155468827,0.7,177.07,177.02,5.6490792]
[1762155468828,9.78882769,177.06,177.02,5.6490792]
[1762155469034,9.78882769,177.04,176.99,14.12433232]
[1762155469219,9.78882769,177.04,176.99,17.57689398]
[1762155469419,9.78882769,177.02,176.99,17.57689398]
[1762155469819,9.78882769,177.04,177.0,5.64971751]
[1762155470027,9.78882769,177.02,177.0,5.64971751]
[1762155470223,9.78882769,177.02,177.0,9.10227917]
[1762155470808,3.7935138,177.05,177.01,3.45256166]
[1762155471014,0.7,177.05,177.04,3.45256166]
[1762155471318,0.7,177.05,177.03,3.45256166]
[1762155471636,0.7,177.05,177.03,9.10119324]
[1762155472539,3.79451216,177.06,177.04,3.45256166]
[1762155472715,13.58333985,177.07,177.05,3.45256166]
[1762155472915,14.28333985,177.07,177.05,3.45256166]
[1762155473115,3.79451216,177.06,177.05,3.45256166]
[1762155473615,4.49451216,177.06,177.05,5.64812199]
[1762155474225,0.7,177.06,177.05,5.64812199]
[1762155475221,13.58333985,177.07,177.05,5.64812199]
[1762155475511,0.7,177.06,177.05,5.64812199]
[1762155476138,3.79997763,177.06,177.05,5.64812199]
[1762155476320,3.79997763,177.07,177.05,5.64812199]
[1762155476522,3.79997763,177.07,177.05,9.10068365]
[1762155477035,4.45997763,177.07,177.05,9.10068365]
[1762155477340,13.58880532,177.06,177.05,9.10068365]
[1762155477843,9.78882769,177.06,177.05,5.64812199]
[1762155478223,10.44882769,177.06,177.05,5.64812199]
[1762155478620,9.78882769,177.06,177.05,5.64812199]
[1762155479041,10.44882769,177.06,177.05,5.64812199]
[1762155480021,14.2541899,177.06,177.05,5.64812199]
[1762155480321,10.44882769,177.06,177.05,5.64812199]
[1762155480536,3.80536221,177.08,177.05,23.91098864]
[1762155480733,9.78882769,177.1,177.07,3.45256166]
[1762155481042,3.8055889,177.1,177.09,3.45256166]
[1762155481343,3.8055889,177.12,177.09,3.45256166]
[1762155481546,9.78882769,177.12,177.11,3.45256166]
[1762155481724,3.80366866,177.12,177.11,3.45256166]
[1762155481929,13.59249635,177.13,177.11,4.14256166]
[1762155482135,9.78882769,177.13,177.12,3.45256166]
[1762155482459,3.80221622,177.15,177.13,5.64557104]
[1762155482741,0.1,177.17,177.14,3.45256166]
[1762155482742,3.80221622,177.16,177.14,3.45256166]
[1762155482942,4.46221622,177.16,177.14,3.45256166]
[1762155483144,9.78882769,177.14,177.11,5.64597717]
[1762155483322,13.59104391,177.14,177.11,9.09853883]
[1762155483523,0.66,177.14,177.11,9.09853883]
[1762155483818,3.80015078,177.15,177.13,3.45256166]
[1762155484024,3.80015078,177.16,177.14,3.45256166]
[1762155484245,9.88882769,177.17,177.15,3.45256166]
[1762155484538,0.1,177.17,177.14,9.09763402]
[1762155484740,0.66,177.16,177.14,9.09763402]
[1762155485041,0.66,177.16,177.14,5.64507236]
[1762155485840,0.66,177.16,177.14,9.09763402]
[1762155486048,0.1,177.17,177.15,3.45256166]
[1762155486258,0.1,177.17,177.16,24.73456166]
[1762155486445,0.1,177.17,177.16,30.37917669]
[1762155486950,29.24807898,177.21,177.19,3.45256166]
[1762155487155,29.24807898,177.21,177.2,3.45256166]
[1762155488431,29.24807898,177.21,177.2,9.09590251]
[1762155490663,29.90807898,177.21,177.19,5.64357197]
[1762155490847,29.90807898,177.21,177.19,9.09613363]
[1762155491043,10.44882769,177.2,177.12,6.33588979]
[1762155491351,10.44882769,177.2,177.15,3.45256166]
[1762155491661,9.78882769,177.18,177.13,14.11392762]
[1762155491960,9.78882769,177.18,177.14,3.45256166]
[1762155492257,0.66,177.19,177.14,3.45256166]
[1762155492258,9.78882769,177.19,177.17,3.45256166]
[1762155492463,29.90807898,177.21,177.19,5.64365934]
[1762155492464,29.24807898,177.21,177.19,5.64365934]
[1762155492634,29.24807898,177.21,177.2,3.45256166]
[1762155493241,29.24807898,177.21,177.19,5.64365934]
[1762155493437,29.24807898,177.21,177.2,3.45256166]
[1762155494563,29.24807898,177.21,177.2,13.46335727]
[1762155495477,1e-08,177.21,177.2,13.46335727]
[1762155495665,0.66,177.33,177.23,20.592]
[1762155495842,0.66,177.33,177.32,7.82001642]
[1762155496042,0.66,177.33,177.27,20.592]
[1762155496238,0.66,177.33,177.31,7.82001642]
[1762155496455,0.66,177.33,177.31,5.63983421]
[1762155496657,0.66,177.33,177.31,7.82001642]
[1762155496863,10.44882769,177.33,177.32,7.82001642]
[1762155497252,0.1,177.35,177.32,7.82001642]
[1762155497447,0.1,177.35,177.34,7.82001642]
[1762155498047,0.1,177.35,177.32,0.69]
[1762155498261,0.1,177.35,177.34,7.82001642]
[1762155498463,0.1,177.35,177.34,13.45890217]
[1762155499471,0.1,177.35,177.32,5.63923855]
[1762155499472,0.76,177.35,177.32,5.63923855]
[1762155499664,0.76,177.35,177.34,7.82001642]
[1762155499869,0.76,177.35,177.33,7.82001642]
[1762155500182,0.1,177.35,177.34,7.82001642]
[1762155501381,0.76,177.35,177.34,7.82001642]
[1762155501673,0.1,177.35,177.34,7.82001642]
[1762155501978,0.1,177.35,177.34,13.45890217]
[1762155502471,0.1,177.35,177.34,11.2442779]
[1762155502673,0.1,177.35,177.34,5.60539215]
[1762155502871,0.1,177.35,177.34,26.88739215]
[1762155503078,0.1,177.35,177.34,32.5262779]
[1762155503869,0.66,177.43,177.37,20.592]
[1762155504077,0.66,177.43,177.41,5.60539215]
[1762155504466,10.44882769,177.43,177.41,5.60539215]
[1762155505016,9.78882769,177.43,177.41,5.60539215]
[1762155505153,20.592,177.48,177.42,5.60539215]
[1762155505485,9.78882769,177.46,177.42,5.60539215]
[1762155505776,5.60539215,177.43,177.37,20.592]
[1762155506083,9.78882769,177.41,177.37,5.60539215]
[1762155506377,9.78882769,177.42,177.37,5.60539215]
[1762155506576,0.66,177.41,177.37,5.60539215]
[1762155506877,0.66,177.41,177.35,26.23043855]
[1762155507077,6.29666155,177.41,177.35,20.592]
[1762155507374,0.66,177.41,177.37,5.60539215]
[1762155507575,21.0305797,177.42,177.37,5.60539215]
[1762155507576,9.78882769,177.39,177.37,5.60539215]
[1762155508084,10.44882769,177.39,177.37,5.60539215]
[1762155508277,9.78882769,177.37,177.35,5.60539215]
[1762155508573,0.66,177.36,177.34,5.60539215]
[1762155509088,0.66,177.36,177.33,11.24439082]
[1762155509386,0.66,177.36,177.33,5.63899867]
[1762155509580,9.78882769,177.35,177.33,5.60539215]
[1762155509776,15.39421984,177.35,177.3,5.60539215]
[1762155509979,6.29830328,177.36,177.28,5.64079422]
[1762155509980,9.78882769,177.33,177.28,5.64079422]
[1762155510167,9.78882769,177.33,177.29,5.60539215]
[1762155510369,0.66,177.32,177.29,5.60539215]
[1762155510585,15.39421984,177.35,177.3,5.60539215]
[1762155510781,0.66,177.33,177.3,5.60539215]
[1762155510976,0.66,177.33,177.31,5.60539215]
[1762155511179,0.66,177.37,177.32,5.60539215]
[1762155511379,9.78882769,177.36,177.31,40.98136112]
[1762155511581,9.78882769,177.36,177.35,5.60539215]
[1762155511780,0.66,177.36,177.31,40.98136112]
[1762155512092,0.66,177.36,177.35,5.60539215]
[1762155512509,9.78882769,177.35,177.27,0.65]
[1762155512694,9.78882769,177.33,177.29,5.60539215]
[1762155513198,0.66,177.32,177.29,5.60539215]
[1762155513377,0.66,177.32,177.28,11.24589558]
[1762155513966,9.78882769,177.31,177.22,14.10641044]
[1762155514171,9.78882769,177.27,177.22,5.64270398]
[1762155514386,11.99337231,177.27,177.22,7.8472486]
[1762155514580,9.78882769,177.25,177.22,7.8472486]
[1762155514981,0.66,177.25,177.22,7.8472486]
[1762155515976,11.99337231,177.23,177.19,5.6436526]
[1762155516186,9.78882769,177.21,177.17,5.64428785]
[1762155516694,9.78882769,177.19,177.17,5.64428785]
[1762155517271,9.78882769,177.19,177.14,19.75791373]
[1762155517475,9.78882769,177.19,177.16,5.61756473]
[1762155517675,34.69518069,177.27,177.14,5.64525234]
[1762155517676,9.78882769,177.17,177.14,5.64525234]
[1762155517894,9.78882769,177.17,177.12,5.64581527]
[1762155518086,9.78882769,177.17,177.12,5.61756473]
[1762155518087,10.44882769,177.17,177.12,5.61756473]
[1762155518302,9.78882769,177.15,177.12,5.61756473]
[1762155518987,0.66,177.2,177.13,0.65]
[1762155519189,9.78882769,177.18,177.14,5.61756473]
[1762155519380,15.40639242,177.18,177.12,5.61756473]
[1762155519585,9.78882769,177.16,177.12,5.61756473]
[1762155519796,9.78882769,177.16,177.13,11.26312362]
[1762155520106,0.66,177.16,177.13,11.26312362]
[1762155520501,0.66,177.16,177.14,5.61756473]
[1762155520807,9.78882769,177.21,177.15,5.61756473]
[1762155521003,9.78882769,177.18,177.15,5.61756473]
[1762155521306,9.78882769,177.18,177.14,5.61756473]
[1762155521504,9.78882769,177.16,177.14,5.61756473]
[1762155521694,9.78882769,177.16,177.13,5.61756473]
[1762155521897,0.66,177.16,177.13,5.61756473]
[1762155522105,9.78882769,177.14,177.09,5.61756473]
[1762155522287,9.78882769,177.14,177.09,11.26441096]
[1762155522482,9.78882769,177.12,177.08,0.2]
[1762155522891,10.44882769,177.12,177.08,5.81756473]
[1762155523200,15.40639242,177.14,177.08,12.11469187]
[1762155523400,15.40639242,177.14,177.09,11.26436845]
[1762155523801,9.78882769,177.12,177.09,5.61756473]
[1762155524003,9.78882769,177.12,177.08,0.2]
[1762155524309,0.66,177.12,177.09,11.2641502]
[1762155524901,9.78882769,177.11,177.09,11.2641502]
[1762155525102,9.78882769,177.11,177.09,5.64658547]
[1762155525314,9.78882769,177.11,177.09,11.2641502]
[1762155526311,0.66,177.15,177.1,5.61756473]
[1762155526611,9.78882769,177.14,177.12,5.61756473]
[1762155526994,0.66,177.14,177.12,5.61756473]
[1762155527892,9.78882769,177.15,177.13,5.64557104]
[1762155528091,9.78882769,177.15,177.12,5.61756473]
[1762155528303,9.78882769,177.15,177.09,14.76711559]
[1762155528304,0.66,177.14,177.09,31.85641096]
[1762155528615,0.66,177.14,177.1,5.61756473]
[1762155528988,0.66,177.14,177.11,5.61756473]
[1762155529192,9.78882769,177.15,177.13,5.61756473]
[1762155529717,0.66,177.15,177.13,5.61756473]
[1762155529914,0.66,177.15,177.13,5.64557104]
[1762155530221,0.66,177.15,177.13,11.26313577]
[1762155531606,0.66,177.15,177.13,5.64557104]
[1762155532105,0.66,177.17,177.14,5.61756473]
[1762155532313,10.44882769,177.16,177.13,5.64557104]
[1762155532511,10.44882769,177.16,177.14,5.61756473]
[1762155533120,10.44882769,177.16,177.13,5.64557104]
[1762155533302,10.44882769,177.16,177.14,5.61756473]
[1762155533619,10.44882769,177.16,177.14,11.26263004]
[1762155534021,15.40639242,177.18,177.13,5.61756473]
[1762155534195,9.78882769,177.13,177.08,19.93482743]
[1762155534521,15.40639242,177.11,177.08,5.84713725]
[1762155535034,9.78882769,177.09,177.08,5.84713725]
[1762155535817,10.44882769,177.09,177.08,0.2]
[1762155536419,16.06639242,177.09,177.08,0.2]
[1762155537309,10.44882769,177.09,177.08,0.2]
[1762155538318,16.06639242,177.09,177.08,0.2]
[1762155540306,21.71323865,177.09,177.08,0.2]
[1762155540625,16.06639242,177.09,177.08,0.2]
[1762155540928,21.71323865,177.09,177.08,0.2]
[1762155541304,9.78882769,177.05,176.97,5.65040827]
[1762155541504,9.78882769,177.01,176.97,5.65040827]
[1762155541728,9.78882769,177.01,176.96,5.61756473]
[1762155541729,15.40639242,177.01,176.96,5.61756473]
[1762155541932,9.78882769,176.99,176.96,11.2684333]
[1762155542414,9.78882769,176.99,176.96,11.9784333]
[1762155542623,9.78882769,176.99,176.96,11.2684333]
[1762155543126,9.78882769,176.99,176.96,5.61756473]
[1762155543328,9.78882769,176.99,176.94,5.65141477]
[1762155543329,9.78882769,176.99,176.94,11.2689795]
[1762155543513,0.66,177.02,176.98,5.61756473]
[1762155543718,0.66,177.07,177.01,5.61756473]
[1762155544029,5.61756473,177.04,176.99,11.26760145]
[1762155544346,6.27756473,177.06,177.0,5.61756473]
[1762155544634,9.78882769,177.04,177.01,5.61756473]
[1762155544828,9.78882769,177.04,177.0,5.61756473]
[1762155545017,9.78882769,177.02,177.01,5.61756473]
[1762155545727,9.78882769,177.05,177.01,11.26696306]
[1762155545931,10.44882769,177.05,177.02,5.61756473]
[1762155546226,0.66,177.05,177.02,5.61756473]
[1762155546434,9.78882769,177.03,177.02,5.61756473]
[1762155546938,14.11472448,177.12,177.02,5.61756473]
[1762155546939,9.78882769,177.06,177.02,6.32756473]
[1762155547243,9.78882769,177.06,177.05,5.61756473]
[1762155547726,9.78882769,177.06,177.05,11.26568672]
[1762155548121,10.44882769,177.11,177.05,11.97568672]
[1762155548322,9.78882769,177.09,177.06,5.61756473]
[1762155548828,9.78882769,177.1,177.07,5.61756473]
[1762155549033,16.54548255,177.29,177.09,5.61756473]
[1762155549034,9.78882769,177.11,177.09,5.61756473]
[1762155549234,0.66,177.1,177.09,5.61756473]
[1762155549416,9.78882769,177.1,177.09,5.61756473]
[1762155549611,10.44882769,177.1,177.07,11.26487619]
[1762155550058,9.78882769,177.11,177.07,5.61756473]
[1762155550342,0.66,177.1,177.07,11.26501606]
[1762155551736,9.78882769,177.09,177.08,5.61756473]
[1762155552033,9.78882769,177.14,177.08,5.61756473]
[1762155552335,9.78882769,177.13,177.09,5.61756473]
[1762155552638,10.44882769,177.13,177.09,5.61756473]
[1762155552843,0.66,177.12,177.09,5.61756473]
[1762155553017,10.44882769,177.14,177.09,5.61756473]
[1762155553334,0.66,177.13,177.09,5.61756473]
[1762155553716,0.66,177.13,177.1,5.64652738]
[1762155554127,15.40639242,177.11,177.05,5.64812199]
[1762155554349,9.78882769,177.11,177.07,5.61756473]
[1762155554521,0.66,177.11,177.07,5.61756473]
[1762155554716,9.78882769,177.09,177.05,20.47842698]
[1762155554921,9.78882769,177.09,177.07,5.61756473]
[1762155555123,9.78882769,177.09,177.06,5.61756473]
[1762155555344,9.78882769,177.09,177.07,5.61756473]
[1762155555644,9.78882769,177.09,177.08,5.64716512]
[1762155556023,0.66,177.13,177.08,11.97472985]
[1762155556343,9.78882769,177.13,177.12,5.61756473]
[1762155556848,9.78882769,177.15,177.12,5.61756473]
[1762155557021,23.54421766,177.2,177.14,5.61756473]
[1762155557022,0.66,177.18,177.14,5.61756473]
[1762155557348,9.78882769,177.17,177.14,5.61756473]
[1762155557572,0.66,177.18,177.15,5.61756473]
[1762155557723,0.66,177.18,177.16,5.64461503]
[1762155557921,9.78882769,177.17,177.13,5.61756473]
[1762155558232,5.61756473,177.15,177.1,14.11570503]
[1762155558433,9.78882769,177.13,177.09,11.26441096]
[1762155558931,9.78882769,177.13,177.09,11.97441096]
[1762155559134,10.44882769,177.14,177.1,5.61756473]
[1762155559338,9.78882769,177.14,177.11,5.61756473]
[1762155559548,9.78882769,177.16,177.12,5.61756473]
[1762155559731,9.78882769,177.16,177.12,11.26345148]
[1762155560042,9.78882769,177.14,177.12,5.64588675]
[1762155560645,9.78882769,177.16,177.12,5.64588675]
[1762155560848,10.44882769,177.16,177.12,5.64588675]
[1762155561047,9.78882769,177.14,177.12,5.64588675]
[1762155561239,15.40639242,177.14,177.08,20.592]
[1762155561450,15.40639242,177.14,177.09,5.64684395]
[1762155561451,10.44882769,177.14,177.09,5.64684395]
[1762155561655,0.66,177.13,177.09,11.26440868]
[1762155561833,0.66,177.13,177.09,25.38152427]
[1762155562038,9.78882769,177.17,177.12,5.61756473]
[1762155562357,9.78882769,177.17,177.1,0.71]
[1762155562358,9.78882769,177.17,177.13,7.82604028]
[1762155562661,9.78882769,177.17,177.14,7.82604028]
[1762155562963,9.78882769,177.17,177.1,0.71]
[1762155563169,9.78882769,177.18,177.12,20.592]
[1762155563345,8.48604028,177.17,177.12,20.592]
[1762155563535,9.78882769,177.15,177.1,8.53604028]
[1762155563734,9.78882769,177.15,177.09,27.58999982]
[1762155563948,9.78882769,177.15,177.09,28.29999982]
[1762155564162,9.78882769,177.15,177.1,7.82604028]
[1762155564658,10.44882769,177.15,177.1,8.53604028]
[1762155564859,9.78882769,177.13,177.09,27.58999982]
[1762155565547,9.78882769,177.13,177.09,28.29999982]
[1762155566346,9.78882769,177.13,177.11,5.64620857]
[1762155566656,9.78882769,177.18,177.12,7.82604028]
[1762155566848,17.61486797,177.18,177.12,7.82604028]
[1762155567035,0.67,177.17,177.12,7.82604028]
[1762155568356,0.67,177.17,177.13,5.64557104]
[1762155568662,9.78882769,177.18,177.14,7.82604028]
[1762155568834,10.45882769,177.18,177.14,7.82604028]
[1762155570257,10.45882769,177.18,177.14,13.47119576]
[1762155572161,10.45882769,177.18,177.14,5.64515548]
[1762155573271,0.67,177.17,177.14,5.64515548]
[1762155574070,0.67,177.17,177.12,13.47162495]
[1762155574240,0.67,177.17,177.12,14.15162495]
[1762155575141,0.67,177.17,177.12,6.32558467]
[1762155575142,10.45882769,177.17,177.12,6.32558467]
[1762155575342,18.28486797,177.17,177.12,5.64558467]
[1762155575645,9.78882769,177.15,177.12,5.64558467]
[1762155576238,17.61486797,177.13,177.08,5.64715618]
[1762155576555,17.61486797,177.13,177.04,0.68]
[1762155576556,17.61486797,177.09,177.03,5.64845128]
[1762155576759,17.61486797,177.06,176.93,0.76519527]
[1762155577072,17.61486797,177.02,176.96,7.82604028]
[1762155577436,17.61486797,177.02,176.97,0.68]
[1762155577842,17.61486797,177.02,176.98,5.65035597]
[1762155578065,18.28486797,177.02,176.98,5.65035597]
[1762155578565,9.78882769,177.02,176.98,6.33035597]
[1762155579069,9.78882769,177.03,176.98,6.33035597]
[1762155579264,0.67,177.02,176.98,5.65035597]
[1762155580052,0.67,177.02,176.97,5.65067525]
[1762155580456,17.61486797,177.03,176.98,0.68]
[1762155580653,9.78882769,177.03,176.98,0.68]
[1762155580865,8.49604028,177.03,176.98,0.68]
[1762155581768,8.49604028,177.03,176.99,5.65003672]
[1762155581958,9.78882769,177.03,176.99,5.65003672]
[1762155582158,9.78882769,177.03,176.99,6.33003672]
[1762155582472,0.67,177.03,176.99,5.65003672]
[1762155583353,0.67,177.03,176.98,5.65035597]
[1762155583354,8.49604028,177.03,176.98,5.65035597]
[1762155583557,9.78882769,177.01,176.98,5.65035597]
[1762155583855,9.78882769,177.01,176.97,5.6506449]
[1762155584060,10.45882769,177.01,176.97,5.6506449]
[1762155584354,10.45882769,177.01,176.97,6.3306449]
[1762155584549,9.78882769,177.01,176.97,14.15668518]
[1762155585262,9.78882769,177.01,176.97,27.60337331]
[1762155585464,9.78882769,177.01,176.97,28.28337331]
[1762155585874,0.67,177.01,176.97,28.28337331]
[1762155586285,9.78882769,177.0,176.97,6.3306449]
[1762155586978,0.67,177.01,176.97,14.15668518]
[1762155587372,17.61486797,177.03,176.97,14.15668518]
[1762155587555,9.78882769,177.01,176.97,14.15668518]
[1762155588256,9.78882769,177.01,176.97,6.3306449]
[1762155588773,10.45882769,177.01,176.97,6.3306449]
[1762155590252,8.49604028,177.0,176.97,5.6506449]
[1762155590452,0.67,177.0,176.97,5.6506449]
[1762155590979,0.67,177.0,176.96,5.65099457]
[1762155591277,9.78882769,176.99,176.96,6.33099457]
[1762155591472,9.78882769,176.99,176.96,14.15703485]
[1762155591777,18.28486797,177.02,176.96,14.15703485]